{"text_format":"1","workbook":"xlsx","n_sheets":1,"sheets":["Единый график на 2 полугодие 20"],"not_rendered":{"charts":0,"images":0,"macros":0,"external_links":0,"defined_names":0,"comments":0,"pivot_tables":0},"unopened":[],"bounds":{"document_bytes":16777216,"sheet_cells":100000,"rows_first":2000,"rows_last":500,"rows_between":2000,"halvings":0,"cell_chars":16384,"cell_head_chars":4096},"cells_cut":0,"cells_raw":0,"read":"whole","date_system":"1900"}

{"sheet":"Единый график на 2 полугодие 20","index":0,"n_rows":52,"n_cols":38,"rows_kept":52,"cut":false,"hidden":false,"merged":[[6,37,6,44],[7,37,7,45],[5,37,5,45],[2,37,2,44],[6,34,6,36],[1,37,1,44],[3,37,3,44],[1,8,1,22],[2,23,4,33],[1,23,1,33],[1,34,3,34],[1,35,1,36],[2,35,2,36],[3,35,3,36],[4,34,4,44],[2,8,4,22],[2,0,2,7],[3,0,3,1],[4,0,4,1],[4,4,4,5],[1,1,1,3],[3,4,3,5],[3,6,3,7],[3,2,3,3],[5,0,5,1],[5,2,5,5],[4,2,4,3],[4,6,4,7],[6,2,7,2],[6,1,7,1],[43,0,43,33],[16,0,16,33],[25,0,25,33],[34,0,34,33],[6,3,6,33],[6,0,7,0]]}
["Единый график контрольных мероприятий"]
["НП","с.Коркинское, Туринский ГО",null,null,"МАОУ Коркинская СОШ"," ","МОУО","30","Положения Рекоменадций Рособрнадзора ",null,null,null,null,null,null,null,null,null,null,null,null,null,null,"Определение оценочных процедур (ОП)",null,null,null,null,null,null,null,null,null,null,"Уровни \nОП ","Федеральный",null," З - зачет      КР - контрольная работа        ПР - проверочная работа"]
["Утверждено",null,null,null,null,null,null,null,"- проводить оценочные процедуры по каждому учебному предмету в одной параллели классов не чаще 1 раза в 2,5 недели. При этом объем учебного времени, затрачиваемого на проведение оценочных  процедур, не должен превышать 10% от всего объема учебного времени, отводимого на изучение данного учебного предмета в данной параллели в текущем учебном году\n- не проводить для обучающихся одного класса более одной оценочной процедуры в день, не проводить оценочные процедуры на первом и последнем уроках, за исключением учебных\n- предметов, по которым проводится не более 1 урока в неделю, причем этот урок является первым или последним в расписании\n- не проводить оценочные процедуры на первом и последнем уроках, за исключением учебных предметов, по которым проводится не более 1 урока в неделю, причем этот урок является первым или последним в расписании",null,null,null,null,null,null,null,null,null,null,null,null,null,null,"- Контрольные, проверочные и диагностические работы, которые выполняются всеми обучающимися в классе одновременно и длительность которых составляет не менее тридцати минут. Все перечисленные виды работ называются оценочными процедурами",null,null,null,null,null,null,null,null,null,null,null,"Региональный",null,"ОГЭ - основной государственный экзамен  ВПР - всероссийская прорверочная работа   СР - самостоятельная работа"]
["Приказ № ",null,"215",null,"Приказ об изменениях № 45",null,null,null,null,null,null,null,null,null,null,null,null,null,null,null,null,null,null,null,null,null,null,null,null,null,null,null,null,null,null,"ОУ",null,"русс. - русский язык     матем. - математика    биолог. - биология   "]
["Дата утверждения",null,"2023-12-28",null,"Дата изменений 19.03.2024г.",null,null,null,null,null,null,null,null,null,null,null,null,null,null,null,null,null,null,null,null,null,null,null,null,null,null,null,null,null,"                                                                                                        окр.мир - окружающий мир    лит.чт - литературное чтение    алгеб. - алгебра "]
["Период",null,null,null,null,null,null,null,null,null,null,null,null,null,null,null,null,null,null,null,null,null,null,null,null,null,null,null,null,null,null,null,null,null,null,null,null,"истор. - история России. Всеобщая история    геогр. - география     инфор. - информатика"]
["Класс","Форма освоения","Кол-во ОП в указанном периоде","Январь",null,null,null,null,null,null,null,null,null,null,null,null,null,null,null,null,null,null,null,null,null,null,null,null,null,null,null,null,null,null,null,null,null,"обществ. - обществознание     геом. - геометрия    литер. - литература"]
[null,null,null,1,2,3,4,5,6,7,8,9,10,11,12,13,14,15,16,17,18,19,20,21,22,23,24,25,26,27,28,29,30,31,null,null,null," физ.кул. - физическая культура    англ.яз. - английский язык    нем.яз. - немецкий язык  вер. и стат. - вероятность и статистика"]
[2,"база",{"$f":"COUNTA(D9:AK9)","v":1},null,null,null,null,null,null,null,null,null,null,null,null,null,null,null,null,null,"русс.-кр"]
[3,"база",1,null,null,null,null,null,null,null,null,null,null,null,null,null,null,null,null,null,null,null,null,null,"русс.-кр"]
[4,"база",2,null,null,null,null,null,null,null,null,null,null,null,"окр.мир-пр",null,null,null,null,null,null,null,null,null,null,null,null,null,null,null,null,null,null,"матем.-кр"]
[5,"база",1,null,null,null,null,null,null,null,null,null,null,null,null,null,null,null,null,null,"русс.-кр"]
[6,"база",2,null,null,null,null,null,null,null,null,null,null,null,null,null,null,null,null,null,null,null,null,null,null,null,null,null,"матем.-кр",null,null,null,"русс.-кр"]
[7,"база",2,null,null,null,null,null,null,null,null,null,null,null,null,null,null,null,null,null,null,null,null,null,"истор.-кр","русс.-кр"]
[8,"база",4,null,null,null,null,null,null,null,null,null,null,null,null,null,null,null,null,null,null,null,null,null,"алеб.-кр","русс.-кр",null,"геом.-кр",null,null,null,null,"химия-кр"]
[9,"база",3,null,null,null,null,null,null,null,null,null,null,null,null,null,null,null,null,null,null,null,null,null,"алеб.-кр",null,null,null,"матем. ртэ",null,null,null,null,"инфор.-кр"]
["Февраль"]
[2,"база",{"$f":"COUNTA(D18:AK18)","v":1},null,null,null,null,null,null,null,null,null,null,null,null,"матем.-кр"]
[3,"база",4,null,null,null,null,null,null,"окр.мир-пр","матем.-кр",null,null,null,null,null,null,null,null,null,null,null,null,null,null,null,null,null,"матем.-кр",null,"русс.-пр"]
[4,"база",3,null,"русс.-кр",null,null,null,null,null,null,null,null,null,null,null,null,null,null,null,null,null,null,"русс.-кр","матем.-кр"]
[5,"база",2,"геогр.-кр",null,null,null,null,null,null,null,null,null,null,null,null,null,null,null,null,null,null,null,null,null,null,null,null,null,null,"русс.-кр"]
[6,"база",3,null,null,null,null,null,null,null,null,null,null,null,"истор.-кр",null,null,"геогр.-кр",null,null,null,null,null,null,null,null,null,null,null,"русс.-кр"]
[7,"база",3,"инфор.-кр",null,null,null,null,null,null,null,null,null,null,null,null,null,null,"русс.-кр",null,null,null,"геогр.-кр"]
[8,"база",5,null,null,null,null,null,null,null,null,null,null,null,"алеб.-кр",null,null,"инфор.-кр",null,null,null,null,"геом.-кр","русс.-кр","ОБЖ-пр"]
[9,"база",4,"геом.-кр",null,null,null,null,"химия-кр",null,null,null,null,null,null,null,null,null,null,null,null,null,null,null,"русс.-кр",null,null,null,null,null,"алеб.-кр"]
["Март"]
[2,"база",{"$f":"COUNTA(D27:AK27)","v":3},null,null,null,null,"матем.-кр",null,null,null,null,null,null,null,null,"англ.яз.-пр",null,null,null,null,"русс.-кр"]
[3,"база",{"$f":"COUNTA(D28:AK28)","v":2},null,null,null,null,null,null,null,null,null,null,null,null,null,"англ.яз.-пр",null,null,null,null,"русс.-кр"]
[4,"база",{"$f":"COUNTA(D29:AK29)","v":2},null,null,null,null,null,null,null,null,null,null,null,null,null,"матем.-кр",null,null,null,null,"ВПР- окр.мир"]
[5,"база",5,null,null,null,null,null,null,"матем.-кр",null,null,null,null,null,null,"геогр.-кр",null,null,null,null,"ВПР-биолог.",null,"ВПР-истор.",null,null,null,null,"русс.-ПР",null,"литер. - ПР"]
[6,"база",{"$f":"COUNTA(D31:AK31)","v":2},null,null,null,null,null,null,null,null,null,null,null,null,null,null,null,null,null,null,"ВПР-геогр.",null,"ВПР-обществ."]
[7,"база",{"$f":"COUNTA(D32:AK32)","v":5},null,null,null,null,null,"алеб.-кр",null,null,null,null,null,null,null,null,null,null,null,"физика-кр","ВПР-биолог.",null,"ВПР-истор.","англ.яз.-пр"]
[8,"база",{"$f":"COUNTA(D33:AK33)","v":5},null,null,null,null,null,null,"химия-кр",null,null,null,null,null,null,null,null,null,null,"алеб.-кр",null,"англ.яз.-пр","ВПР-геогр.",null,null,null,null,"русс.-ПР"]
[9,"база",{"$f":"COUNTA(D34:AK34)","v":4},null,null,null,null,null,null,null,null,null,null,null,null,null,"физика-кр",null,null,null,null,null,null,"геом.-кр","англ.яз.-пр",null,null,null,null,null,"русс.-кр"]
["Апрель"]
[2,"база",2,null,null,null,null,null,null,null,null,null,"русс.-кр","матем.-кр"]
[3,"база",2,null,null,null,null,null,null,null,null,null,null,null,null,null,null,null,"матем.-кр",null,null,null,null,null,null,null,null,null,null,null,null,"лит.чт-пр"]
[4,"база",3,null,null,null,null,null,null,null,null,null,"матем.-кр",null,null,null,null,null,null,null,null,null,null,null,null,"ВПР-русс.","ВПР-русс.",null,"ВПР-матем."]
[5,"база",2,null,null,null,null,null,null,null,null,null,null,null,null,null,null,null,null,null,null,null,null,null,null,"ВПР-русс.",null,null,"ВПР-матем."]
[6,"база",3,null,"матем.-кр",null,"геогр.-кр",null,null,null,null,null,null,null,null,null,null,null,null,null,null,null,null,null,null,"ВПР-русс.",null,null,"ВПР-матем."]
[7,"база",3,null,null,null,null,null,null,null,null,null,null,null,null,null,null,null,null,null,null,null,null,null,null,"ВПР-русс.",null,null,"ВПР-матем."]
[8,"база",5,null,null,null,"биолог.-кр",null,null,null,null,null,"физика-кр",null,null,null,null,null,null,"алеб.-кр",null,null,null,null,"истор.-кр","ВПР-русс.",null,null,"ВПР-матем."]
[9,"база",5,null,null,null,null,null,null,null,null,null,null,null,null,null,null,null,null,null,null,"ОБЖ-кр",null,null,"русс.-кр","алеб.-кр",null,"биолог.-кр",null,null,null,null,"химия-кр"]
["Май"]
[2,"база",3,null,null,null,null,null,null,null,null,null,null,null,null,null,"матем.-кр",null,null,null,null,null,null,"англ.яз.-пр","русс.-кр"]
[3,"база",4,null,null,null,null,null,null,null,null,null,null,null,null,null,null,null,"англ.яз.-пр",null,null,null,"матем.-кр",null,null,null,"русс.-кр",null,null,"лит.чт-кр"]
[4,"база",3,null,null,null,null,null,null,null,null,null,null,null,null,null,null,null,"русс.-кр",null,null,null,null,"англ.яз.-пр",null,null,"окр.мир-пр"]
[5,"база",5,null,null,null,null,null,null,null,null,null,null,null,null,null,null,"истор.-кр",null,null,null,null,"русс.-кр",null,null,"матем.-кр","биолог.-кр",null,null,"литер.-кр"]
[6,"база",7,null,null,null,null,null,null,null,null,null,null,null,null,null,"биолог.-кр",null,"литер.-кр","русс.-кр",null,null,"матем.-кр",null,null,"англ.яз.-пр","геогр.-кр",null,null,"истор.-кр"]
[7,"база",9,null,null,null,null,null,"истор.-кр","геогр.-кр",null,null,null,null,null,null,"англ.яз.-пр",null,"физика-кр","алеб.-кр",null,null,null,"геогр.-кр","биолог.-кр","литер.-кр","русс.-кр"]
[8,"база",8,null,null,null,null,null,null,null,null,null,null,null,null,null,"химия-кр",null,"ОБЖ-кр","обществ.-кр",null,null,null,"англ.яз.-пр","физика-кр","русс.-кр","биолог.-кр",null,null,"алеб.-кр"]
[9,"база",8,null,null,null,null,null,"физика-кр","геом.-кр",null,null,null,null,null,null,"англ.яз.-пр","истор.-кр","русс.-кр","обществ.-кр",null,null,"алеб.-кр","физика-кр",null,null,null,null,null,"ОГЭ-обществ."]